[Event "8th Mersin Open 2024"]
[Site "Mersin"]
[Date "2024.11.13"]
[Round "5"]
[White "Shafei, Hamid"]
[Black "Sahin, Ata Sarp"]
[Result "1-0"]
[ECO "B11"]
[WhiteElo "2018"]
[BlackElo "2109"]
[Annotator "ChessBase"]
[PlyCount "141"]
[EventDate "2024.11.10"]
[EventType "swiss"]
[EventCountry "TUR"]
[SourceTitle "playchess.com"]
[Source "ChessBase"]
[SourceQuality "1"]
[TimeControl "5400+30"]

1. e4 {[%emt 0:07:00]} c6 {[%emt 0:02:00]} 2. Nf3 {[%emt 0:00:30]} d5 {[%emt 0:00:30]} 3. Nc3 {[%emt 0:00:00]} Bg4 {[%emt 0:00:30]} 4. h3 {[%emt 0:00:00]} Bxf3 {[%emt 0:01:30]} 5. Qxf3 {[%emt 0:00:00]} e6 {[%emt 0:00:30]} 6. d4 {[%emt 0:01:00]} dxe4 {[%emt 0:04:30]} 7. Nxe4 {[%emt 0:01:30]} Nd7 {[%emt 0:04:30]} 8. Bd3 {[%emt 0:00:30]} Ngf6 {[%emt 0:02:30]} 9. c3 {[%emt 0:03:30]} Nxe4 {[%emt 0:02:30]} 10. Bxe4 {[%emt 0:00:30]} Bd6 {[%emt 0:02:30]} 11. O-O {[%emt 0:03:30]} O-O {[%emt 0:02:30]} 12. Re1 {[%emt 0:01:30]} a5 {[%emt 0:07:30]} 13. Bc2 {[%emt 0:01:30]} Qf6 {[%emt 0:11:30]} 14. Qh5 {[%emt 0:02:30]} g6 {[%emt 0:01:30]} 15. Qh6 {[%emt 0:04:30]} Rfe8 {[%emt 0:05:30]} 16. Bg5 {[%emt 0:04:30]} Qg7 {[%emt 0:03:30]} 17. Qh4 {[%emt 0:00:30]} Qf8 {[%emt 0:06:30]} 18. Bh6 {[%emt 0:05:30]} Qe7 {[%emt 0:00:30]} 19. Bg5 {[%emt 0:00:30]} Qf8 {[%emt 0:00:30]} 20. Bh6 {[%emt 0:01:30]} Qe7 {[%emt 0:05:30]} 21. Qg4 {[%emt 0:06:30]} Nf6 {[%emt 0:06:30]} 22. Qf3 {[%emt 0:00:30]} Nd7 {[%emt 0:03:30]} 23. Re2 {[%emt 0:00:30]} Qh4 {[%emt 0:00:30]} 24. Qe3 {[%emt 0:00:30]} Qf6 {[%emt 0:04:30]} 25. Rae1 {[%emt 0:04:30]} Nb6 {[%emt 0:00:30]} 26. Bg5 {[%emt 0:00:30]} Qg7 {[%emt 0:00:30]} 27. Qf3 {[%emt 0:00:30]} a4 {[%emt 0:01:30]} 28. Re4 {[%emt 0:00:30]} Be7 {[%emt 0:00:30]} 29. Bc1 {[%emt 0:01:30]} Ra5 {[%emt 0:00:43]} 30. Qe2 {[%emt 0:02:30]} Bf6 {[%emt 0:03:30]} 31. Bd2 {[%emt 0:02:30]} Rd5 {[%emt 0:01:14]} 32. Be3 {[%emt 0:03:30]} Red8 {[%emt 0:01:20]} 33. b4 {[%emt 0:00:30]} R5d7 {[%emt 0:01:35]} 34. Qf3 {[%emt 0:09:30]} Nd5 {[%emt 0:03:20]} 35. Bc1 {[%emt 0:00:30]} b5 {[%emt 0:00:21]} 36. h4 {[%emt 0:00:30]} h5 {[%emt 0:00:52]} 37. g3 {[%emt 0:00:30]} Be7 {[%emt 0:01:50]} 38. Kg2 {[%emt 0:00:30]} Qf6 {[%emt 0:03:23]} 39. Qd3 {[%emt 0:03:30]} Qg7 {[%emt 0:00:23]} 40. a3 {[%emt 0:01:30]} Nb6 {[%emt 0:00:46]} 41. Qf3 {[%emt 0:00:30]} Nd5 {[%emt 0:00:59]} 42. Bb1 {[%emt 0:00:30]} Nf6 {[%emt 0:00:58]} 43. Re5 {[%emt 0:00:30]} Nd5 {[%emt 0:00:55]} 44. Ba2 {[%emt 0:02:30]} Bf6 {[%emt 0:00:26]} 45. R5e4 {[%emt 0:01:30]} Rd6 {[%emt 0:01:00]} 46. Bf4 {[%emt 0:01:30]} R6d7 {[%emt 0:00:19]} 47. Qd3 {[%emt 0:00:30]} Qf8 {[%emt 0:03:28]} 48. Qd2 {[%emt 0:00:30]} Qg7 {[%emt 0:00:23]} 49. Bb1 {[%emt 0:02:30]} Be7 {[%emt 0:01:06]} 50. Qc1 {[%emt 0:00:30]} Bf6 {[%emt 0:00:35]} 51. Bd3 {[%emt 0:00:30]} Nxf4+ {[%emt 0:01:01]} 52. Qxf4 {[%emt 0:00:30]} Rd5 {[%emt 0:00:51]} 53. R4e2 {[%emt 0:01:30]} R5d6 {[%emt 0:00:40]} 54. Be4 {[%emt 0:00:30]} e5 {[%emt 0:00:17]} 55. Qf3 {[%emt 0:02:30]} exd4 {[%emt 0:00:36]} 56. cxd4 {[%emt 0:00:00]} Bxd4 {[%emt 0:00:21]} 57. Bxc6 {[%emt 0:00:00]} Rf6 {[%emt 0:01:05]} 58. Qe4 {[%emt 0:00:30]} Rf5 {[%emt 0:00:08]} 59. Bd7 {[%emt 0:01:30]} Re5 {[%emt 0:00:43]} 60. Qc6 {[%emt 0:00:00]} Rxe2 {[%emt 0:00:44]} 61. Rxe2 {[%emt 0:00:00]} Bb2 {[%emt 0:00:05]} 62. Qc7 {[%emt 0:01:30]} Qf6 {[%emt 0:00:31]} 63. Bxb5 {[%emt 0:01:57]} Bxa3 {[%emt 0:00:11]} 64. Bc4 {[%emt 0:00:07]} Bxb4 {[%emt 0:01:13]} 65. Bxf7+ {[%emt 0:00:15]} Kf8 {[%emt 0:00:05]} 66. Re6 {[%emt 0:02:03]} Qd4 {[%emt 0:00:29]} 67. Rxg6 {[%emt 0:01:43]} Be7 {[%emt 0:00:15]} 68. Qc6 {[%emt 0:02:17]} Qe5 {[%emt 0:00:48]} 69. Bc4 {[%emt 0:02:11]} Bd6 {[%emt 0:00:26]} 70. Qf3+ {[%emt 0:00:21]} Qf4 {[%emt 0:00:34]} 71. gxf4 {[%emt 0:00:15]} 1-0

[Event "8th Mersin Open 2024"]
[Site "Mersin"]
[Date "2024.11.13"]
[Round "5"]
[White "Celebi, Mehmet Alper"]
[Black "Sahin, Ata Sarp"]
[Result "1-0"]
[ECO "B23"]
[WhiteElo "2014"]
[BlackElo "2109"]
[Annotator "ChessBase"]
[PlyCount "95"]
[EventDate "2024.11.10"]
[EventType "swiss"]
[EventCountry "TUR"]
[SourceTitle "playchess.com"]
[Source "ChessBase"]
[SourceQuality "1"]
[TimeControl "5400+30"]

1. e4 {[%emt 0:01:00]} c5 {[%emt 0:01:00]} 2. Nc3 {[%emt 0:00:00]} d6 {[%emt 0:00:30]} 3. d4 {[%emt 0:00:00]} cxd4 {[%emt 0:00:30]} 4. Qxd4 {[%emt 0:00:30]} Nc6 {[%emt 0:00:00]} 5. Qd2 {[%emt 0:00:30]} g6 {[%emt 0:00:00]} 6. b3 {[%emt 0:00:30]} Bh6 {[%emt 0:00:30]} 7. f4 {[%emt 0:01:30]} Nf6 {[%emt 0:00:30]} 8. Bb2 {[%emt 0:01:30]} O-O {[%emt 0:00:00]} 9. O-O-O {[%emt 0:00:00]} e5 {[%emt 0:00:00]} 10. g3 {[%emt 0:02:00]} Re8 {[%emt 0:02:30]} 11. Bg2 {[%emt 0:06:30]} Nd4 {[%emt 0:05:30]} 12. Nge2 {[%emt 0:07:30]} Bg4 {[%emt 0:01:30]} 13. Nxd4 {[%emt 0:08:30]} exd4 {[%emt 0:02:30]} 14. Qxd4 {[%emt 0:01:30]} Bxd1 {[%emt 0:02:30]} 15. Rxd1 {[%emt 0:05:30]} Bg7 {[%emt 0:00:30]} 16. Qxd6 {[%emt 0:00:30]} Qa5 {[%emt 0:04:30]} 17. b4 {[%emt 0:03:30]} Qh5 {[%emt 0:00:30]} 18. e5 {[%emt 0:00:30]} Ng4 {[%emt 0:18:30]} 19. Bf3 {[%emt 0:02:30]} Qxh2 {[%emt 0:03:30]} 20. Bxg4 {[%emt 0:04:30]} Qxg3 {[%emt 0:00:30]} 21. Bd7 {[%emt 0:00:30]} Qxf4+ {[%emt 0:00:30]} 22. Kb1 {[%emt 0:00:00]} Bxe5 {[%emt 0:01:30]} 23. Qc5 {[%emt 0:01:00]} Red8 {[%emt 0:02:30]} 24. Ne2 {[%emt 0:01:30]} Rxd7 {[%emt 0:07:30]} 25. Rxd7 {[%emt 0:00:30]} Qf1+ {[%emt 0:00:30]} 26. Nc1 {[%emt 0:00:30]} Bxb2 {[%emt 0:00:30]} 27. Kxb2 {[%emt 0:00:00]} h5 {[%emt 0:00:00]} 28. Qe7 {[%emt 0:00:00]} Qc4 {[%emt 0:03:00]} 29. Rc7 {[%emt 0:04:30]} Qd4+ {[%emt 0:01:30]} 30. Ka3 {[%emt 0:02:30]} Qd5 {[%emt 0:06:30]} 31. Nd3 {[%emt 0:02:30]} a5 {[%emt 0:03:30]} 32. b5 {[%emt 0:00:00]} Rf8 {[%emt 0:11:30]} 33. Ne5 {[%emt 0:02:00]} Qxb5 {[%emt 0:02:30]} 34. Rxb7 {[%emt 0:00:30]} Qf1 {[%emt 0:00:30]} 35. Kb2 {[%emt 0:05:30]} Qf5 {[%emt 0:00:37]} 36. Nd7 {[%emt 0:00:30]} Rc8 {[%emt 0:00:23]} 37. Nf6+ {[%emt 0:01:30]} Kh8 {[%emt 0:00:30]} 38. Ne4 {[%emt 0:01:30]} Kg8 {[%emt 0:00:30]} 39. a4 {[%emt 0:01:30]} Qf4 {[%emt 0:06:21]} 40. Rb5 {[%emt 0:16:52]} h4 {[%emt 0:03:45]} 41. Qd7 {[%emt 0:05:07]} Rc4 {[%emt 0:02:59]} 42. Qd8+ {[%emt 0:05:09]} Kg7 {[%emt 0:01:30]} 43. Rb8 {[%emt 0:00:24]} Qe5+ {[%emt 0:03:55]} 44. c3 {[%emt 0:02:00]} Rb4+ {[%emt 0:00:05]} 45. Rxb4 {[%emt 0:00:37]} Qh2+ {[%emt 0:00:20]} 46. Qd2 {[%emt 0:00:39]} Qxd2+ {[%emt 0:00:30]} 47. Nxd2 {[%emt 0:00:00]} axb4 {[%emt 0:00:00]} 48. a5 {[%emt 0:00:03]} 1-0

[Event "8th Mersin Open 2024"]
[Site "Mersin"]
[Date "2024.11.13"]
[Round "5"]
[White "Tezcan, Alper"]
[Black "Hasirci, Ozgur Deniz"]
[Result "1-0"]
[ECO "B96"]
[WhiteElo "2002"]
[BlackElo "2128"]
[Annotator "RC"]
[PlyCount "83"]
[EventDate "2024.11.10"]
[EventType "swiss"]
[EventCountry "TUR"]
[SourceTitle "playchess.com"]
[Source "ChessBase"]
[SourceQuality "1"]
[TimeControl "5400+30"]

1. e4 {[%emt 0:02:00]} c5 {[%emt 0:01:00]} 2. Nf3 {[%emt 0:00:30]} d6 {[%emt 0:00:30]} 3. d4 {[%emt 0:00:30]} cxd4 {[%emt 0:00:00]} 4. Nxd4 {[%emt 0:00:00]} Nf6 {[%emt 0:00:00]} 5. Nc3 {[%emt 0:00:00]} a6 {[%emt 0:00:30]} 6. Bg5 {[%emt 0:00:00]} e6 {[%emt 0:00:00]} 7. f4 {[%emt 0:00:00]} Qc7 {[%emt 0:03:00]} 8. Qf3 {[%emt 0:04:30]} b5 {[%emt 0:03:30]} 9. a3 {[%emt 0:02:30]} Bb7 {[%emt 0:02:30]} 10. Bxf6 {[%emt 0:12:30]} gxf6 {[%emt 0:00:30]} 11. O-O-O {[%emt 0:00:30]} Nd7 {[%emt 0:13:30]} 12. Qh5 {[%emt 0:07:30]} Nc5 {[%emt 0:01:30]} 13. Bd3 {[%emt 0:11:30]} O-O-O {[%emt 0:07:30]} 14. Kb1 {[%emt 0:05:30]} f5 {[%emt 0:07:30]} 15. exf5 {[%emt 0:11:30]} Bg7 {[%emt 0:24:30]} 16. Be2 {[%emt 0:16:30]} Bxg2 {[%emt 0:10:30]} 17. Rhg1 {[%emt 0:03:30]} Qb7 {[%emt 0:02:30]} 18. Bf1 {[%emt 0:03:28]} Bxf1 {[%emt 0:07:56]} 19. Rxg7 {[%emt 0:00:08]} Bc4 {[%emt 0:05:41]} 20. Rxf7 {[%emt 0:06:56]} Rd7 {[%emt 0:00:47]} 21. Rxd7 {[%emt 0:00:42]} Qxd7 {[%emt 0:00:09]} 22. b3 {[%emt 0:01:59]} e5 {[%emt 0:00:16]} 23. fxe5 {[%emt 0:02:13]} Bf7 {[%emt 0:05:32]} 24. Qf3 {[%emt 0:00:49]} Qb7 {[%emt 0:01:27]} 25. Qxb7+ {[%emt 0:00:41]} Nxb7 {[%emt 0:00:15]} 26. e6 {[%emt 0:00:00]} Bh5 {[%emt 0:00:25]} 27. Rf1 {[%emt 0:00:02]} Kd8 {[%emt 0:00:33]} 28. f6 {[%emt 0:00:38]} Ke8 {[%emt 0:01:34]} 29. Nd5 {[%emt 0:03:15]} Nd8 {[%emt 0:00:47]} 30. Nc7+ {[%emt 0:00:50]} Kf8 {[%emt 0:00:04]} 31. e7+ {[%emt 0:00:19]} Kf7 {[%emt 0:00:08]} 32. exd8=Q {[%emt 0:00:37]} Rxd8 {[%emt 0:00:03]} 33. Nd5 {[%emt 0:00:06]} Re8 {[%emt 0:00:37]} 34. Ne7 {[%emt 0:02:12]} Bg6 {[%emt 0:00:32]} 35. Kb2 {[%emt 0:00:45]} d5 {[%emt 0:00:18]} 36. Kc3 {[%emt 0:00:54]} Rd8 {[%emt 0:00:07]} 37. Ndc6 {[%emt 0:00:44]} Rd6 {[%emt 0:00:55]} 38. Ne5+ {[%emt 0:00:30]} Kf8 {[%emt 0:00:00]} 39. N7xg6+ {[%emt 0:00:06]} hxg6 {[%emt 0:00:16]} 40. Nxg6+ {[%emt 0:00:00]} Kf7 {[%emt 0:00:01]} 41. Ne5+ {[%emt 0:00:21]} Kf8 {[%emt 0:00:00]} 42. Kd4 {[%emt 0:00:00]} 1-0

[Event "8th Mersin Open 2024"]
[Site "Mersin"]
[Date "2024.11.13"]
[Round "5"]
[White "Taavoni, Rahim"]
[Black "Icoz, Cinar"]
[Result "1-0"]
[ECO "E12"]
[WhiteElo "1958"]
[BlackElo "1882"]
[Annotator "ChessBase"]
[PlyCount "161"]
[EventDate "2024.11.10"]
[EventType "swiss"]
[EventCountry "TUR"]
[SourceTitle "playchess.com"]
[Source "ChessBase"]
[SourceQuality "1"]
[TimeControl "5400+30"]

1. d4 {[%emt 0:06:00]} Nf6 {[%emt 0:01:00]} 2. c4 {[%emt 0:00:00]} e6 {[%emt 0:01:30]} 3. Nf3 {[%emt 0:00:00]} b6 {[%emt 0:00:30]} 4. a3 {[%emt 0:00:00]} Bb7 {[%emt 0:01:30]} 5. Nc3 {[%emt 0:00:00]} d5 {[%emt 0:04:30]} 6. cxd5 {[%emt 0:00:30]} exd5 {[%emt 0:00:30]} 7. Bg5 {[%emt 0:01:30]} Be7 {[%emt 0:03:30]} 8. Qa4+ {[%emt 0:00:30]} c6 {[%emt 0:04:30]} 9. e3 {[%emt 0:01:30]} Ne4 {[%emt 0:05:30]} 10. Bxe7 {[%emt 0:13:30]} Qxe7 {[%emt 0:00:00]} 11. Nxd5 {[%emt 0:03:30]} Qd7 {[%emt 0:00:00]} 12. Nc3 {[%emt 0:08:30]} Nxc3 {[%emt 0:19:30]} 13. bxc3 {[%emt 0:02:30]} O-O {[%emt 0:06:30]} 14. Be2 {[%emt 0:12:30]} Qe7 {[%emt 0:09:30]} 15. Ne5 {[%emt 0:07:30]} c5 {[%emt 0:09:30]} 16. Bf3 {[%emt 0:03:30]} Bxf3 {[%emt 0:02:30]} 17. Nxf3 {[%emt 0:00:30]} Nd7 {[%emt 0:00:00]} 18. O-O {[%emt 0:00:30]} Nf6 {[%emt 0:09:00]} 19. c4 {[%emt 0:02:30]} Rac8 {[%emt 0:04:26]} 20. d5 {[%emt 0:08:30]} Ne4 {[%emt 0:01:56]} 21. Qc2 {[%emt 0:00:30]} f5 {[%emt 0:03:35]} 22. Nd2 {[%emt 0:03:30]} Nd6 {[%emt 0:01:40]} 23. Rae1 {[%emt 0:03:30]} Rce8 {[%emt 0:00:54]} 24. a4 {[%emt 0:02:00]} Rf6 {[%emt 0:00:38]} 25. f3 {[%emt 0:06:13]} Qe5 {[%emt 0:02:10]} 26. Qd3 {[%emt 0:02:51]} Rh6 {[%emt 0:01:35]} 27. f4 {[%emt 0:00:30]} Qe7 {[%emt 0:00:30]} 28. Re2 {[%emt 0:02:07]} Rf6 {[%emt 0:03:34]} 29. Rfe1 {[%emt 0:00:42]} Ne4 {[%emt 0:00:39]} 30. Nxe4 {[%emt 0:00:46]} Qxe4 {[%emt 0:00:30]} 31. Qxe4 {[%emt 0:00:00]} Rxe4 {[%emt 0:00:00]} 32. Rc2 {[%emt 0:00:47]} Kf7 {[%emt 0:00:14]} 33. Kf2 {[%emt 0:00:01]} Ke7 {[%emt 0:00:50]} 34. Rb1 {[%emt 0:00:45]} Kd7 {[%emt 0:01:21]} 35. Kf3 {[%emt 0:01:47]} h5 {[%emt 0:01:12]} 36. Rc3 {[%emt 0:01:19]} Rg6 {[%emt 0:01:35]} 37. a5 {[%emt 0:01:23]} Kc7 {[%emt 0:00:48]} 38. Ra1 {[%emt 0:00:50]} a6 {[%emt 0:00:31]} 39. axb6+ {[%emt 0:03:54]} Rxb6 {[%emt 0:00:30]} 40. Ra5 {[%emt 0:00:00]} Kd6 {[%emt 0:00:00]} 41. Ra4 {[%emt 0:00:38]} Kc7 {[%emt 0:00:00]} 42. Rca3 {[%emt 0:00:25]} Kb7 {[%emt 0:00:00]} 43. g3 {[%emt 0:00:29]} g6 {[%emt 0:00:16]} 44. h3 {[%emt 0:00:42]} Rd6 {[%emt 0:00:58]} 45. Rc3 {[%emt 0:01:04]} Kb6 {[%emt 0:00:36]} 46. Rca3 {[%emt 0:01:19]} Kb7 {[%emt 0:00:06]} 47. Ra2 {[%emt 0:01:13]} Rb6 {[%emt 0:00:35]} 48. R2a3 {[%emt 0:00:00]} Rd6 {[%emt 0:00:34]} 49. Rd3 {[%emt 0:00:28]} Kc7 {[%emt 0:01:32]} 50. g4 {[%emt 0:00:58]} h4 {[%emt 0:00:04]} 51. Rd2 {[%emt 0:00:57]} Kb7 {[%emt 0:01:15]} 52. gxf5 {[%emt 0:00:30]} gxf5 {[%emt 0:00:30]} 53. Rg2 {[%emt 0:00:09]} Rxd5 {[%emt 0:01:34]} 54. Rg7+ {[%emt 0:00:30]} Kb6 {[%emt 0:00:30]} 55. Rxa6+ {[%emt 0:00:30]} Kxa6 {[%emt 0:00:30]} 56. cxd5 {[%emt 0:00:30]} Kb5 {[%emt 0:00:30]} 57. Rb7+ {[%emt 0:00:30]} Ka6 {[%emt 0:00:30]} 58. Rf7 {[%emt 0:00:30]} c4 {[%emt 0:00:30]} 59. Rxf5 {[%emt 0:00:30]} Re7 {[%emt 0:00:30]} 60. d6 {[%emt 0:00:30]} Rd7 {[%emt 0:00:30]} 61. Rc5 {[%emt 0:00:30]} Rxd6 {[%emt 0:00:30]} 62. Rxc4 {[%emt 0:00:30]} Rg6 {[%emt 0:00:30]} 63. f5 {[%emt 0:00:30]} Rg3+ {[%emt 0:00:30]} 64. Kf4 {[%emt 0:00:30]} Rxh3 {[%emt 0:00:30]} 65. Rc2 {[%emt 0:00:00]} Rh1 {[%emt 0:00:00]} 66. Ke5 {[%emt 0:00:18]} h3 {[%emt 0:00:00]} 67. e4 {[%emt 0:00:30]} h2 {[%emt 0:00:00]} 68. Rf2 {[%emt 0:00:30]} Kb6 {[%emt 0:00:00]} 69. f6 {[%emt 0:00:25]} Kc6 {[%emt 0:00:00]} 70. f7 {[%emt 0:00:28]} Rg1 {[%emt 0:00:00]} 71. Rxh2 {[%emt 0:00:30]} Rg5+ {[%emt 0:00:00]} 72. Ke6 {[%emt 0:00:15]} Rg6+ {[%emt 0:00:00]} 73. Ke7 {[%emt 0:00:00]} Rg7 {[%emt 0:00:00]} 74. Rc2+ {[%emt 0:00:18]} Kb7 {[%emt 0:00:00]} 75. e5 {[%emt 0:00:19]} Rxf7+ {[%emt 0:00:07]} 76. Kxf7 {[%emt 0:00:30]} Ka7 {[%emt 0:00:00]} 77. Rb2 {[%emt 0:00:00]} Ka6 {[%emt 0:00:09]} 78. e6 {[%emt 0:00:15]} Ka5 {[%emt 0:00:30]} 79. e7 {[%emt 0:00:00]} Ka6 {[%emt 0:00:00]} 80. e8=Q {[%emt 0:00:00]} Ka7 {[%emt 0:00:21]} 81. Qa4# {[%emt 0:00:00]} 1-0

[Event "8th Mersin Open 2024"]
[Site "Mersin"]
[Date "2024.11.13"]
[Round "5"]
[White "Turkmen, Yusuf Cagan"]
[Black "Rabbani, Abtin"]
[Result "1-0"]
[ECO "B06"]
[WhiteElo "1942"]
[BlackElo "1805"]
[Annotator "NA RC"]
[PlyCount "63"]
[EventDate "2024.11.10"]
[EventType "swiss"]
[EventCountry "TUR"]
[SourceTitle "playchess.com"]
[Source "ChessBase"]
[SourceQuality "1"]
[TimeControl "5400+30"]

1. e4 {[%emt 0:01:00]} c5 {[%emt 0:01:00]} 2. Nf3 {[%emt 0:00:30]} g6 {[%emt 0:00:30]} 3. c3 {[%emt 0:00:30]} d5 {[%emt 0:00:30]} 4. exd5 {[%emt 0:00:30]} Qxd5 {[%emt 0:00:00]} 5. d4 {[%emt 0:00:00]} Bg7 {[%emt 0:01:00]} 6. Na3 {[%emt 0:00:00]} cxd4 {[%emt 0:01:30]} 7. Nb5 {[%emt 0:00:00]} Na6 {[%emt 0:05:30]} 8. Nbxd4 $11 {[%emt 0:00:00]} Nf6 {[%emt 0:09:30]} 9. Bb5+ {[%emt 0:04:30]} Bd7 {[%emt 0:00:30]} 10. Bxa6 {[%emt 0:00:30]} bxa6 {[%emt 0:00:30]} 11. O-O {[%emt 0:00:00]} a5 {[%emt 0:04:30]} 12. Re1 {[%emt 0:02:00]} Qd6 {[%emt 0:06:30]} 13. Nf5 {[%emt 0:08:30]} Qxd1 {[%emt 0:00:30]} 14. Nxg7+ {[%emt 0:00:30]} Kf8 {[%emt 0:00:30]} 15. Ne6+ {[%emt 0:00:30]} Kg8 {[%emt 0:00:30]} 16. Rxd1 {[%emt 0:00:30]} Bxe6 {[%emt 0:00:30]} 17. Nd4 {[%emt 0:00:30]} Bd7 {[%emt 0:15:30]} 18. Re1 {[%emt 0:12:30]} e6 {[%emt 0:05:30]} 19. Bf4 {[%emt 0:14:30]} Nd5 {[%emt 0:03:30]} 20. Bd6 {[%emt 0:01:30]} Kg7 {[%emt 0:05:30]} 21. Nb3 {[%emt 0:05:30]} a4 {[%emt 0:11:30]} 22. Nc5 {[%emt 0:00:30]} Nb6 {[%emt 0:03:30]} 23. Be5+ {[%emt 0:04:30]} f6 {[%emt 0:02:30]} 24. Bc7 {[%emt 0:02:30]} Nd5 {[%emt 0:02:15]} 25. Ba5 {[%emt 0:02:30]} Bc8 {[%emt 0:00:44]} 26. Nxe6+ {[%emt 0:01:30]} Kf7 {[%emt 0:01:33]} 27. Nd8+ {[%emt 0:00:30]} Kg7 {[%emt 0:00:26]} 28. Rad1 {[%emt 0:01:30]} Nb6 {[%emt 0:00:00]} 29. Re7+ {[%emt 0:01:30]} Kf8 {[%emt 0:00:11]} 30. Bb4 {[%emt 0:06:30]} Kg8 {[%emt 0:01:39]} 31. Nf7 {[%emt 0:01:30]} Kg7 {[%emt 0:01:25]} 32. Nxh8+ {[%emt 0:00:00]} 1-0

[Event "8th Mersin Open 2024"]
[Site "Mersin"]
[Date "2024.11.13"]
[Round "5"]
[White "Yigit, Ahmet Yasir"]
[Black "Asgharvand, Davood"]
[Result "1-0"]
[ECO "B34"]
[WhiteElo "1927"]
[BlackElo "1874"]
[Annotator "RC"]
[PlyCount "25"]
[EventDate "2024.11.10"]
[EventType "swiss"]
[EventCountry "TUR"]
[SourceTitle "playchess.com"]
[Source "ChessBase"]
[SourceQuality "1"]
[TimeControl "5400+30"]

1. e4 {[%emt 0:01:00]} c5 {[%emt 0:02:00]} 2. Nf3 {[%emt 0:00:30]} Nc6 {[%emt 0:00:30]} 3. Nc3 {[%emt 0:01:30]} g6 {[%emt 0:00:30]} 4. d4 {[%emt 0:00:30]} cxd4 {[%emt 0:00:30]} 5. Nxd4 {[%emt 0:00:30]} Bg7 {[%emt 0:00:30]} 6. Be3 {[%emt 0:00:00]} Nf6 {[%emt 0:00:00]} 7. Nxc6 {[%emt 0:00:00]} bxc6 {[%emt 0:00:00]} 8. e5 {[%emt 0:00:30]} Ng8 {[%emt 0:00:30]} 9. Bd4 {[%emt 0:00:00]} Qa5 {[%emt 0:00:00]} 10. e6 {[%emt 0:02:00]} Nf6 {[%emt 0:00:00]} 11. exd7+ {[%emt 0:02:30]} Bxd7 {[%emt 0:00:00]} 12. Bc4 {[%emt 0:01:30]} Rd8 {[%emt 0:02:00]} 13. Qe2 {[%emt 0:02:30]} 1-0

[Event "8th Mersin Open 2024"]
[Site "Mersin"]
[Date "2024.11.13"]
[Round "5"]
[White "Avsar, Gediz"]
[Black "Ercan, Mehmet Fahri"]
[Result "1-0"]
[ECO "B31"]
[WhiteElo "1926"]
[BlackElo "1788"]
[Annotator "ChessBase"]
[PlyCount "77"]
[EventDate "2024.11.10"]
[EventType "swiss"]
[EventCountry "TUR"]
[SourceTitle "playchess.com"]
[Source "ChessBase"]
[SourceQuality "1"]
[TimeControl "5400+30"]

1. e4 {[%emt 0:01:00]} c5 {[%emt 0:18:00]} 2. Nf3 {[%emt 0:00:30]} Nc6 {[%emt 0:00:30]} 3. Bb5 {[%emt 0:00:00]} g6 {[%emt 0:04:30]} 4. Bxc6 {[%emt 0:00:00]} dxc6 {[%emt 0:00:30]} 5. d3 {[%emt 0:00:30]} Bg7 {[%emt 0:01:30]} 6. h3 {[%emt 0:00:30]} Nf6 {[%emt 0:00:30]} 7. O-O {[%emt 0:00:00]} O-O {[%emt 0:00:00]} 8. Nc3 {[%emt 0:00:00]} Nh5 {[%emt 0:08:00]} 9. e5 {[%emt 0:13:30]} Bh8 {[%emt 0:00:30]} 10. Bh6 {[%emt 0:00:30]} Re8 {[%emt 0:00:30]} 11. Re1 {[%emt 0:12:30]} Ng7 {[%emt 0:14:30]} 12. a4 {[%emt 0:07:30]} Ne6 {[%emt 0:01:30]} 13. a5 {[%emt 0:02:30]} Nd4 {[%emt 0:03:30]} 14. Bf4 {[%emt 0:04:30]} Ne6 {[%emt 0:04:30]} 15. Bg3 {[%emt 0:02:30]} Bd7 {[%emt 0:00:30]} 16. Ne4 {[%emt 0:01:30]} b6 {[%emt 0:03:30]} 17. c3 {[%emt 0:03:30]} b5 {[%emt 0:08:30]} 18. Qe2 {[%emt 0:02:30]} Bg7 {[%emt 0:05:30]} 19. Qe3 {[%emt 0:01:30]} c4 {[%emt 0:02:30]} 20. dxc4 {[%emt 0:04:30]} bxc4 {[%emt 0:00:30]} 21. Red1 {[%emt 0:04:30]} Qc8 {[%emt 0:00:30]} 22. Nfd2 {[%emt 0:07:30]} f5 {[%emt 0:05:15]} 23. exf6 {[%emt 0:00:30]} exf6 {[%emt 0:00:21]} 24. Nd6 {[%emt 0:00:30]} Qa6 {[%emt 0:02:04]} 25. Nxe8 {[%emt 0:00:30]} Rxe8 {[%emt 0:00:00]} 26. Ne4 {[%emt 0:01:30]} Nf8 {[%emt 0:02:32]} 27. Qf4 {[%emt 0:02:30]} Bf5 {[%emt 0:04:26]} 28. Nd6 {[%emt 0:00:30]} Re5 {[%emt 0:00:28]} 29. Qxc4+ {[%emt 0:01:30]} Qxc4 {[%emt 0:00:30]} 30. Nxc4 {[%emt 0:00:00]} Rc5 {[%emt 0:02:01]} 31. Ne3 {[%emt 0:01:00]} Be6 {[%emt 0:00:18]} 32. Rd8 {[%emt 0:07:13]} Rb5 {[%emt 0:01:09]} 33. Rb8 {[%emt 0:00:06]} Kf7 {[%emt 0:00:59]} 34. a6 {[%emt 0:00:55]} f5 {[%emt 0:00:30]} 35. Rb7+ {[%emt 0:00:30]} Kf6 {[%emt 0:00:30]} 36. Rxa7 {[%emt 0:00:30]} g5 {[%emt 0:01:45]} 37. Rxg7 {[%emt 0:00:41]} Kxg7 {[%emt 0:00:30]} 38. a7 {[%emt 0:00:30]} f4 {[%emt 0:00:30]} 39. a8=Q {[%emt 0:00:07]} 1-0